bitfinex/quotes_BTCUSD_20250616
["timestamp","ask_amount","ask_price","bid_price","bid_amount"]
[1750098731350,1.07556518,108180.0,108170.0,1.05958333]
[1750098732410,1.07556518,108180.0,108170.0,1.06422333]
[1750098732839,0.78266518,108180.0,108170.0,0.86756509]
[1750098733065,0.78066518,108180.0,108170.0,0.86756509]
[1750098733271,0.78066518,108180.0,108170.0,0.86856509]
[1750098733951,0.78066518,108180.0,108170.0,0.86756509]
[1750098733952,0.77866518,108180.0,108170.0,0.86756509]
[1750098734359,0.77866518,108180.0,108170.0,0.86956509]
[1750098734525,0.77866518,108180.0,108170.0,1.10236509]
[1750098734746,0.77866518,108180.0,108170.0,0.58283298]
[1750098734967,0.77866518,108180.0,108170.0,1.10536509]
[1750098736047,0.77866518,108180.0,108170.0,1.10736509]
[1750098736275,0.77866518,108180.0,108170.0,1.55314509]
[1750098747954,0.77866518,108180.0,108170.0,1.03361298]
[1750098748161,0.77866518,108180.0,108170.0,1.55314509]
[1750098749247,0.77866518,108180.0,108170.0,1.36182509]
[1750098749458,0.77866518,108180.0,108170.0,1.55302509]
[1750098751938,0.77866518,108180.0,108170.0,1.55294509]
[1750098755923,0.77866518,108180.0,108170.0,1.36182509]
[1750098756139,0.77866518,108180.0,108170.0,1.55286509]
[1750098756561,0.77866518,108180.0,108170.0,1.36182509]
[1750098756675,0.77866518,108180.0,108170.0,1.55282509]
[1750098759400,0.77866518,108180.0,108170.0,1.55278509]
[1750098761543,0.77866518,108180.0,108170.0,1.55270509]
[1750098762304,0.77866518,108180.0,108170.0,0.83765298]
[1750098762526,0.77866518,108180.0,108170.0,1.02853298]
[1750098762745,0.77866518,108180.0,108170.0,1.54806509]
[1750098762958,0.77866518,108180.0,108170.0,1.39674509]
[1750098763200,0.77866518,108180.0,108170.0,1.54806509]
[1750098767040,0.77866518,108180.0,108170.0,2.4122372]
[1750098767266,0.77866518,108180.0,108170.0,1.89270509]
[1750098769529,0.77866518,108180.0,108170.0,2.42677805]
[1750098769746,0.48476518,108180.0,108170.0,2.42677805]
[1750098770176,0.48476518,108180.0,108170.0,1.90724594]
[1750098770394,0.48476518,108180.0,108170.0,2.62677805]
[1750098772647,0.48476518,108180.0,108170.0,2.82677805]
[1750098774014,0.48476518,108180.0,108170.0,2.30724594]
[1750098774869,0.19086518,108180.0,108170.0,2.30724594]
[1750098780169,0.19086518,108180.0,108170.0,2.87677805]
[1750098781088,0.19086518,108180.0,108170.0,2.90453905]
[1750098781293,0.19086518,108180.0,108170.0,2.90153905]
[1750098781727,0.19086518,108180.0,108170.0,2.92953905]
[1750098782603,0.19086518,108180.0,108170.0,2.92753905]
[1750098783029,0.19086518,108180.0,108170.0,2.93253905]
[1750098783308,0.19086518,108180.0,108170.0,2.67165905]
[1750098783523,0.19086518,108180.0,108170.0,2.83429805]
[1750098785209,0.17583816,108180.0,108170.0,2.83429805]
[1750098789206,0.17583816,108180.0,108170.0,3.40383016]
[1750098789403,0.00127448,108190.0,108180.0,0.63623157]
[1750098789630,0.00127448,108190.0,108180.0,1.92269755]
[1750098790253,0.00127448,108190.0,108180.0,2.06543755]
[1750098790409,0.00127448,108190.0,108180.0,2.25583755]
[1750098790611,0.00127448,108190.0,108180.0,2.01843755]
[1750098790840,0.00127448,108190.0,108180.0,2.2273784]
[1750098791245,0.00127448,108190.0,108180.0,2.23680913]
[1750098792261,0.00127448,108190.0,108180.0,2.24178913]
[1750098792472,0.00127448,108190.0,108180.0,2.26918713]
[1750098794747,0.00127448,108190.0,108180.0,2.34018713]
[1750098795998,0.00127448,108190.0,108180.0,2.34014713]
[1750098796207,0.00127448,108190.0,108180.0,2.47506713]
[1750098796410,0.00127448,108190.0,108180.0,2.66542713]
[1750098796613,0.00127448,108190.0,108180.0,2.47506713]
[1750098796823,0.00127448,108190.0,108180.0,2.51430713]
[1750098797025,0.00127448,108190.0,108180.0,2.66542713]
[1750098797234,0.00127448,108190.0,108180.0,2.83044713]
[1750098797443,0.00127448,108190.0,108180.0,2.83542713]
[1750098798563,0.00127448,108190.0,108180.0,2.64506713]
[1750098798787,0.00127448,108190.0,108180.0,2.83542713]
[1750098800594,0.00127448,108190.0,108180.0,2.86318613]
[1750098800834,0.00127448,108190.0,108180.0,2.67282613]
[1750098801037,0.00127448,108190.0,108180.0,2.86318613]
[1750098803091,0.00127448,108190.0,108180.0,2.67282613]
[1750098803303,0.00127448,108190.0,108180.0,2.86318613]
[1750098808388,0.00127448,108190.0,108180.0,2.83542713]
[1750098809851,0.00127448,108190.0,108180.0,0.82020206]
[1750098810053,0.00127448,108190.0,108180.0,1.72537417]
[1750098810054,0.00584448,108190.0,108180.0,1.72537417]
[1750098810256,0.00584448,108190.0,108180.0,2.06537417]
[1750098810970,0.00584448,108190.0,108180.0,1.87501417]
[1750098811162,0.00584448,108190.0,108180.0,2.06537417]
[1750098815778,0.00584448,108190.0,108180.0,2.08147417]
[1750098816848,0.00584448,108190.0,108180.0,1.54584206]
[1750098817070,0.03714448,108190.0,108180.0,1.05472206]
[1750098817279,0.03714448,108190.0,108180.0,1.72537417]
[1750098817981,0.03714448,108190.0,108180.0,1.53501417]
[1750098818190,0.03714448,108190.0,108180.0,1.72537417]
[1750098819054,0.03714448,108190.0,108180.0,1.53501417]
[1750098819266,0.03714448,108190.0,108180.0,1.72537417]
[1750098820286,0.02094448,108190.0,108180.0,1.20584206]
[1750098820488,0.02094448,108190.0,108180.0,1.72537417]
[1750098822483,0.00584448,108190.0,108180.0,1.72537417]
[1750098822699,0.03594448,108190.0,108180.0,1.72537417]
[1750098823536,0.03594448,108190.0,108180.0,1.53501417]
[1750098823739,0.03594448,108190.0,108180.0,1.05472206]
[1750098823945,0.03594448,108190.0,108180.0,1.20584206]
[1750098824998,0.03594448,108190.0,108180.0,1.03584206]
[1750098825349,0.03594448,108190.0,108180.0,0.88472206]
[1750098825561,0.03594448,108190.0,108180.0,1.03584206]
[1750098825770,0.03594448,108190.0,108180.0,1.03484206]
[1750098826471,0.03594448,108190.0,108180.0,1.00744406]
[1750098826774,0.03594448,108190.0,108180.0,0.71141157]
[1750098827006,0.03594448,108190.0,108180.0,0.90177157]
[1750098828714,0.03594448,108190.0,108180.0,0.91102972]
[1750098828924,0.03594448,108190.0,108180.0,0.90177157]
[1750098829913,0.03594448,108190.0,108180.0,0.88149765]
[1750098830355,0.03594448,108190.0,108180.0,0.89998441]
[1750098830520,0.03594448,108190.0,108180.0,0.70962441]
[1750098830738,0.56471881,108190.0,108180.0,0.45496441]
[1750098830919,0.03594448,108190.0,108180.0,0.60608441]
[1750098831309,0.04518679,108190.0,108180.0,0.60608441]
[1750098831505,0.03594448,108190.0,108180.0,0.60608441]
[1750098831752,0.0451867,108190.0,108180.0,0.60604441]
[1750098831957,0.0544291,108190.0,108180.0,0.60604441]
[1750098832132,0.0451867,108190.0,108180.0,0.45496441]
[1750098832333,0.0451867,108190.0,108180.0,0.60608441]
[1750098833943,0.0451867,108190.0,108180.0,0.89998441]
[1750098835174,0.03594448,108190.0,108180.0,0.89998441]
[1750098835510,0.04518679,108190.0,108180.0,0.89998441]
[1750098836714,0.03594448,108190.0,108180.0,0.89998441]
[1750098837436,0.04518679,108190.0,108180.0,0.89998441]
[1750098838503,0.03594448,108190.0,108180.0,0.89998441]
[1750098838720,0.03594448,108190.0,108180.0,1.41951652]
[1750098839574,0.03594448,108190.0,108180.0,0.89998441]
[1750098840683,0.00127448,108190.0,108180.0,2.14248896]
[1750098841112,0.00127448,108190.0,108180.0,2.48248896]
[1750098841564,0.00127448,108190.0,108180.0,2.65248896]
[1750098842456,0.00127448,108190.0,108180.0,2.65727896]
[1750098844530,0.00127448,108190.0,108180.0,2.68566264]
[1750098845689,0.00127448,108190.0,108180.0,1.93498196]
[1750098845893,0.00127448,108190.0,108180.0,2.08606196]
[1750098846513,0.00127448,108190.0,108180.0,2.09085196]
[1750098849700,0.00127448,108190.0,108180.0,2.08606196]
[1750098851466,0.00127448,108190.0,108180.0,1.89578196]
[1750098851685,0.00127448,108190.0,108180.0,2.08606196]
[1750098851900,0.00127448,108190.0,108180.0,1.37362585]
[1750098852089,0.00624448,108190.0,108180.0,2.06932196]
[1750098852417,0.00624448,108190.0,108180.0,2.08562196]
[1750098852630,0.00127448,108190.0,108180.0,2.08562196]
[1750098853270,0.00127448,108190.0,108180.0,2.60994407]
[1750098853686,0.00127448,108190.0,108180.0,2.09041196]
[1750098857595,0.00127448,108190.0,108180.0,2.08562196]
[1750098858310,0.00127448,108190.0,108180.0,1.37584985]
[1750098858529,0.00624448,108190.0,108180.0,2.05402196]
[1750098859255,0.00624448,108190.0,108180.0,2.08552196]
[1750098859458,0.00624448,108190.0,108180.0,1.89528196]
[1750098859656,0.00624448,108190.0,108180.0,2.08552196]
[1750098860054,0.00624448,108190.0,108180.0,1.38344985]
[1750098860256,0.00624448,108190.0,108180.0,2.05402196]
[1750098860885,0.00624448,108190.0,108180.0,1.53448985]
[1750098861103,0.00624448,108190.0,108180.0,2.05402196]
[1750098862059,0.00624448,108190.0,108180.0,1.86378196]
[1750098862271,0.00624448,108190.0,108180.0,2.05402196]
[1750098863803,0.00624448,108190.0,108180.0,1.53448985]
[1750098864442,0.00624448,108190.0,108180.0,1.53452985]
[1750098865188,0.00624448,108190.0,108180.0,1.16614617]
[1750098867022,0.00624448,108190.0,108180.0,1.70157828]
[1750098867227,0.00624448,108190.0,108180.0,1.71787828]
[1750098872529,0.00624448,108190.0,108180.0,1.16614617]
[1750098873009,0.03874448,108190.0,108180.0,0.62492441]
[1750098873226,0.03874448,108190.0,108180.0,0.60596441]
[1750098873689,0.02254448,108190.0,108180.0,0.60596441]
[1750098875869,0.00624448,108190.0,108180.0,0.60596441]
[1750098876285,0.00624448,108190.0,108180.0,0.41576441]
[1750098876494,0.00624448,108190.0,108180.0,0.60592441]
[1750098877273,0.00581448,108190.0,108180.0,1.12545652]
[1750098877472,0.00581448,108190.0,108180.0,1.14145652]
[1750098878327,0.00581448,108190.0,108180.0,1.43535652]
[1750098881144,0.00581448,108190.0,108180.0,1.41935652]
[1750098882149,0.00581448,108190.0,108180.0,0.89982441]
[1750098887211,0.00581448,108190.0,108180.0,1.45175652]
[1750098891097,0.00127448,108190.0,108180.0,1.45175652]
[1750098891730,0.00127448,108190.0,108180.0,1.54799828]
[1750098891945,0.00127448,108190.0,108180.0,2.07249039]
[1750098892170,0.00127448,108190.0,108180.0,1.55295828]
[1750098892799,0.00127448,108190.0,108180.0,2.06753039]
[1750098893027,0.00127448,108190.0,108180.0,1.54799828]
[1750098896148,0.00127448,108190.0,108180.0,1.57591862]
[1750098897516,0.00127448,108190.0,108180.0,1.58087862]
[1750098898380,0.00122537,108190.0,108180.0,1.58087862]
[1750098899415,0.00122537,108190.0,108180.0,1.05634651]
[1750098899626,0.00122537,108190.0,108180.0,1.57587862]
[1750098900974,0.00122537,108190.0,108180.0,2.10017073]
[1750098901241,0.00122537,108190.0,108180.0,1.58063862]
[1750098905864,0.00122537,108190.0,108180.0,1.57587862]
[1750098906501,0.00122537,108190.0,108180.0,0.86360251]
[1750098906712,0.02091537,108190.0,108180.0,0.89974441]
[1750098906925,0.00581537,108190.0,108180.0,0.89974441]
[1750098907565,0.00581537,108190.0,108180.0,0.70966441]
[1750098907775,0.01505768,108190.0,108180.0,0.70966441]
[1750098907979,0.01505768,108190.0,108180.0,0.89974441]
[1750098908180,0.00581537,108190.0,108180.0,0.89974441]
[1750098908331,0.01505759,108190.0,108180.0,0.74878441]
[1750098908528,0.06394281,108190.0,108180.0,0.74878441]
[1750098908792,0.06394281,108190.0,108180.0,0.89974441]
[1750098909074,0.06394272,108190.0,108180.0,0.89974441]
[1750098909922,0.07318546,108190.0,108180.0,0.70966441]
[1750098910142,0.07318546,108190.0,108180.0,0.89974441]
[1750098910553,0.26728833,108190.0,108180.0,0.74878441]
[1750098910758,0.08242837,108190.0,108180.0,0.89974441]
[1750098910966,0.08242828,108190.0,108180.0,0.60584441]
[1750098911182,0.07318546,108190.0,108180.0,0.60584441]
[1750098911479,0.08242828,108190.0,108180.0,0.60584441]
[1750098911881,0.07318546,108190.0,108180.0,0.60584441]
[1750098912169,0.06394272,108190.0,108180.0,0.60584441]
[1750098912392,0.02430007,108190.0,108180.0,0.60584441]
[1750098912950,0.03354256,108190.0,108180.0,0.60584441]
[1750098913382,0.02429999,108190.0,108180.0,0.60584441]
[1750098913580,0.03354256,108190.0,108180.0,0.60584441]
[1750098914841,0.02429999,108190.0,108180.0,0.60584441]
[1750098915048,0.03354256,108190.0,108180.0,0.60584441]
[1750098915336,0.0427853,108190.0,108180.0,0.60584441]
[1750098915744,0.0427853,108190.0,108180.0,0.45488441]
[1750098915745,0.0579853,108190.0,108180.0,0.45488441]
[1750098915957,0.08232812,108190.0,108180.0,0.45488441]
[1750098917647,0.0730853,108190.0,108180.0,0.45488441]
[1750098918054,0.0579853,108190.0,108180.0,0.45488441]
[1750098918512,0.0730853,108190.0,108180.0,0.45488441]
[1750098919339,0.06384256,108190.0,108180.0,0.45488441]
[1750098919533,0.07308538,108190.0,108180.0,0.45488441]
[1750098919756,0.06384256,108190.0,108180.0,0.45488441]
[1750098919919,0.0579853,108190.0,108180.0,0.45488441]
[1750098921610,0.0427853,108190.0,108180.0,0.45488441]
[1750098921819,0.03354256,108190.0,108180.0,0.45488441]
[1750098922441,0.0427853,108190.0,108180.0,0.45488441]
[1750098922852,0.03354256,108190.0,108180.0,0.45488441]
[1750098923061,0.04278521,108190.0,108180.0,0.45488441]
[1750098923272,0.03354256,108190.0,108180.0,0.45488441]
[1750098923481,0.02429999,108190.0,108180.0,0.45488441]
[1750098923678,0.03354247,108190.0,108180.0,0.45488441]
[1750098924232,0.04278512,108190.0,108180.0,0.45488441]
[1750098924442,0.03354247,108190.0,108180.0,0.45488441]
[1750098924785,0.04278512,108190.0,108180.0,0.45488441]
[1750098924992,0.03354247,108190.0,108180.0,0.45488441]
[1750098925386,0.01505759,108190.0,108180.0,0.45488441]
[1750098925533,0.02429999,108190.0,108180.0,0.47138441]
[1750098925743,0.01505759,108190.0,108180.0,0.47138441]
[1750098925947,0.02430007,108190.0,108180.0,0.47138441]
[1750098926355,0.03354272,108190.0,108180.0,0.47138441]
[1750098926570,0.02430007,108190.0,108180.0,0.45488441]
[1750098927255,0.03354272,108190.0,108180.0,0.41576441]
[1750098927485,0.05788554,108190.0,108180.0,0.45488441]
[1750098928145,0.7780783,108190.0,108180.0,0.24144]
[1750098928377,0.76872974,108190.0,108180.0,0.244064]
[1750098928617,6.77450361,108190.0,108180.0,0.00704]
[1750098928904,6.81119711,108190.0,108180.0,0.00704]
[1750098929134,6.93502651,108190.0,108180.0,0.00704]
[1750098929778,6.93502651,108190.0,108180.0,4e-05]
[1750098930205,6.94102651,108190.0,108180.0,4e-05]
[1750098930656,6.91334633,108190.0,108180.0,4e-05]
[1750098930890,6.91734633,108190.0,108180.0,4e-05]
[1750098931106,1.61085495,108180.0,108170.0,0.03416]
[1750098931316,1.95420593,108180.0,108170.0,0.03416]
[1750098932183,1.43467382,108180.0,108170.0,0.03416]
[1750098932605,0.24105312,108170.0,108160.0,0.07790971]
[1750098932826,0.85682699,108170.0,108160.0,8.714e-05]
[1750098933032,0.95297621,108170.0,108160.0,0.03920714]
[1750098933906,0.95397621,108170.0,108160.0,0.03920714]
[1750098934787,0.95597621,108170.0,108160.0,0.03920714]
[1750098935475,6.88004917,108170.0,108160.0,8.714e-05]
[1750098935691,6.36051706,108170.0,108160.0,8.714e-05]
[1750098935903,6.38262063,108170.0,108160.0,8.714e-05]
[1750098938293,6.41040663,108170.0,108160.0,8.714e-05]
[1750098938726,6.56136663,108170.0,108160.0,8.714e-05]
[1750098942066,6.53358063,108170.0,108160.0,8.714e-05]
[1750098942284,6.38257703,108170.0,108160.0,8.714e-05]
[1750098942503,6.24982699,108170.0,108160.0,8.714e-05]
[1750098942723,6.21712699,108170.0,108160.0,0.07528571]
[1750098942957,6.36808699,108170.0,108160.0,0.07528571]
[1750098943400,6.39928699,108170.0,108160.0,0.07528571]
[1750098943615,6.49543621,108170.0,108160.0,0.07528571]
[1750098944153,6.34447621,108170.0,108160.0,0.07528571]
[1750098944374,1.31808699,108170.0,108160.0,0.07528571]
[1750098944581,1.31808699,108170.0,108160.0,8.714e-05]
[1750098947648,1.36402784,108170.0,108160.0,8.714e-05]
[1750098947858,6.41402784,108170.0,108160.0,0.03920714]
[1750098948773,6.43609424,108170.0,108160.0,0.03920714]
[1750098949006,6.53224346,108170.0,108160.0,8.714e-05]
[1750098951003,6.38128346,108170.0,108160.0,8.714e-05]
[1750098951219,6.31327621,108170.0,108160.0,8.714e-05]
[1750098951426,6.36808699,108170.0,108160.0,8.714e-05]
[1750098951866,6.21712699,108170.0,108160.0,0.18499838]
[1750098952073,6.36808699,108170.0,108160.0,8.714e-05]
[1750098953115,6.21712699,108170.0,108160.0,8.714e-05]
[1750098953353,6.46423621,108170.0,108160.0,8.714e-05]
[1750098953763,1.41423621,108170.0,108160.0,8.714e-05]
[1750098955651,1.43635105,108170.0,108160.0,8.714e-05]
[1750098956323,1.41423621,108170.0,108160.0,8.714e-05]
[1750098956733,1.43635298,108170.0,108160.0,8.714e-05]
[1750098957590,6.51675298,108170.0,108160.0,0.03920714]
[1750098957801,6.51675298,108170.0,108160.0,8.714e-05]
[1750098958038,6.51675298,108170.0,108160.0,0.03920714]
[1750098958884,6.51399316,108170.0,108160.0,0.03920714]
[1750098959097,6.48631298,108170.0,108160.0,0.03920714]
[1750098959969,0.76089087,108170.0,108160.0,0.05490714]
[1750098960223,0.66930165,108170.0,108160.0,0.07060714]
[1750098960478,1.33975376,108170.0,108160.0,0.07060714]
[1750098960707,0.66474165,108170.0,108160.0,0.26738794]
[1750098960931,0.01224419,108170.0,108160.0,0.37032199]
[1750098961152,0.01224393,108170.0,108160.0,0.37032199]
[1750098961362,0.003,108170.0,108160.0,0.37032199]
[1750098961585,0.01224393,108170.0,108160.0,0.37032199]
[1750098962068,0.2248709,108170.0,108160.0,0.21902238]
[1750098962302,0.03073223,108170.0,108160.0,0.28583803]
[1750098962484,0.19089668,108170.0,108160.0,0.29072803]
[1750098962723,0.19089641,108170.0,108160.0,0.29072803]
[1750098963361,0.19089633,108170.0,108160.0,0.29072803]
[1750098963570,0.18165205,108170.0,108160.0,0.29072803]
[1750098963784,0.20014086,108170.0,108160.0,0.29072803]
[1750098964197,0.04922155,108170.0,108160.0,0.29072803]
[1750098964436,0.04922155,108170.0,108160.0,0.29072811]
[1750098964647,0.22487167,108170.0,108160.0,0.27659307]
[1750098964872,0.22487167,108170.0,108160.0,0.2858382]
[1750098965081,0.21562757,108170.0,108160.0,0.27659315]
[1750098965290,0.21562757,108170.0,108160.0,0.28583837]
[1750098965503,0.02148881,108170.0,108160.0,0.29508341]
[1750098965742,0.03073351,108170.0,108160.0,0.2950835]
[1750098966186,0.21562765,108170.0,108160.0,0.2950835]
[1750098966408,0.21562765,108170.0,108160.0,0.30432854]
[1750098966636,0.21562765,108170.0,108160.0,0.2950835]
[1750098966863,0.21562765,108170.0,108160.0,0.27659315]
[1750098967085,0.21562765,108170.0,108160.0,0.28583837]
[1750098967745,0.02148881,108170.0,108160.0,0.29508341]
[1750098967980,0.03997728,108170.0,108160.0,0.30432837]
[1750098968204,0.003,108170.0,108160.0,0.82386048]
[1750098969723,0.0122441,108170.0,108160.0,0.30432837]
[1750098969728,0.003,108170.0,108160.0,0.97478048]
[1750098969946,0.003,108170.0,108160.0,1.07102224]
[1750098970587,0.54726212,108180.0,108170.0,0.23498295]
[1750098970801,0.03697369,108180.0,108170.0,0.23498312]
[1750098971008,0.02773001,108180.0,108170.0,0.25347141]
[1750098971222,0.02772993,108180.0,108170.0,0.25347141]
[1750098971872,0.02872993,108180.0,108170.0,0.25347141]
[1750098972101,0.03072993,108180.0,108170.0,0.25347141]
[1750098974217,0.03072993,108180.0,108170.0,0.24422731]
[1750098974436,0.21560758,108180.0,108170.0,0.21911814]
[1750098974677,0.74894354,108180.0,108170.0,0.27668703]
[1750098974911,0.003,108180.0,108170.0,0.78051752]
[1750098976225,0.002,108180.0,108170.0,0.78051752]
[1750098976727,0.0197099,108190.0,108180.0,0.24380757]
[1750098976937,0.02895238,108190.0,108180.0,0.24869757]
[1750098977161,0.03819495,108190.0,108180.0,0.24869757]
[1750098977418,0.1139623,108190.0,108180.0,0.24869757]
[1750098977637,0.10471973,108190.0,108180.0,0.24869757]
[1750098977859,0.0197099,108190.0,108180.0,0.24869757]
[1750098978080,0.0207099,108190.0,108180.0,0.24869757]
[1750098978320,0.00222537,108190.0,108180.0,0.76596368]
[1750098978767,0.00422537,108190.0,108180.0,0.76596368]
[1750098978993,0.01346768,108190.0,108180.0,0.76596368]
[1750098979220,0.02271025,108190.0,108180.0,0.24643157]
[1750098979442,0.01346768,108190.0,108180.0,0.24643157]
[1750098979662,0.02271008,108190.0,108180.0,0.24643157]
[1750098979913,0.00422537,108190.0,108180.0,0.24643157]
[1750098980119,0.01346768,108190.0,108180.0,0.24643157]
[1750098980824,0.01346759,108190.0,108180.0,0.24643157]
[1750098981367,0.0227099,108190.0,108180.0,0.24643157]
[1750098981576,0.01346759,108190.0,108180.0,0.24643157]
[1750098982003,0.00422537,108190.0,108180.0,0.24643157]
[1750098982218,0.01346759,108190.0,108180.0,0.24643157]
[1750098982433,0.01346768,108190.0,108180.0,0.25132157]
[1750098982872,0.20338005,108180.0,108170.0,0.18751814]
[1750098983086,0.21260774,108180.0,108170.0,0.22886276]
[1750098983298,0.22185159,108180.0,108170.0,0.034724]
[1750098983503,0.21260825,108180.0,108170.0,0.034724]
[1750098983711,0.21716825,108180.0,108170.0,0.034724]
[1750098983924,0.20792466,108180.0,108170.0,0.034724]
[1750098984133,0.72745677,108180.0,108170.0,0.034724]
[1750098984344,0.81084604,108180.0,108170.0,0.002624]
[1750098985995,0.29131393,108180.0,108170.0,0.034324]
[1750098986228,0.81084604,108180.0,108170.0,0.034324]
[1750098986447,0.8108457,108180.0,108170.0,0.22846267]
[1750098986661,0.8108457,108180.0,108170.0,0.22846284]
[1750098986662,0.21716817,108180.0,108170.0,0.22846284]
[1750098986871,0.73670028,108180.0,108170.0,0.23770746]
[1750098987083,0.72745677,108180.0,108170.0,0.034324]
[1750098990661,0.20792466,108180.0,108170.0,0.034324]
[1750098990890,0.72745677,108180.0,108170.0,0.034324]
[1750098994533,0.72745677,108180.0,108170.0,0.002624]
[1750098994756,0.19413876,108170.0,108160.0,0.03168714]
[1750098994985,0.71834087,108170.0,108160.0,8.714e-05]
[1750098995632,0.82988263,108170.0,108160.0,0.00271114]
[1750098996332,0.82988263,108170.0,108160.0,0.00471114]
[1750098996569,0.31035052,108170.0,108160.0,0.00471114]
[1750098996787,0.92603185,108170.0,108160.0,0.00471114]
[1750098997003,0.92603185,108170.0,108160.0,0.00671114]
[1750098997425,0.91073185,108170.0,108160.0,0.00671114]
[1750098997635,0.81458263,108170.0,108160.0,0.00671114]
[1750099003139,6.25122348,108170.0,108160.0,0.00408714]
[1750099003357,6.7928893,108170.0,108160.0,0.00408714]
[1750099003566,5.75382508,108170.0,108160.0,0.00408714]
[1750099003779,6.27335719,108170.0,108160.0,0.00408714]
[1750099003994,6.36950641,108170.0,108160.0,0.00408714]
[1750099004217,6.36950641,108170.0,108160.0,8.714e-05]
[1750099004420,6.37550641,108170.0,108160.0,8.714e-05]
[1750099006054,6.47292641,108170.0,108160.0,8.714e-05]
[1750099006249,6.37550641,108170.0,108160.0,8.714e-05]
[1750099007021,6.27935719,108170.0,108160.0,8.714e-05]
[1750099007238,6.27933187,108170.0,108160.0,8.714e-05]
[1750099007457,1.17512348,108170.0,108160.0,8.714e-05]
[1750099007682,1.16058263,108170.0,108160.0,8.714e-05]
[1750099017218,1.18271867,108170.0,108160.0,8.714e-05]
[1750099017424,1.27886789,108170.0,108160.0,8.714e-05]
[1750099019546,1.30664789,108170.0,108160.0,8.714e-05]
[1750099023580,6.92152085,108170.0,108160.0,8.714e-05]
[1750099023731,6.94915634,108170.0,108160.0,8.714e-05]
[1750099024344,6.98607288,108170.0,108160.0,8.714e-05]
[1750099024959,7.00339232,108170.0,108160.0,8.714e-05]
[1750099026243,7.00338973,108170.0,108160.0,8.714e-05]
[1750099026446,7.00988355,108170.0,108160.0,8.714e-05]
[1750099027143,6.98224806,108170.0,108160.0,8.714e-05]
[1750099027357,7.09808233,108170.0,108160.0,8.714e-05]
[1750099028039,6.67882563,108150.0,108140.0,4e-05]
[1750099028261,6.98007681,108150.0,108140.0,8.714e-05]
[1750099028495,6.98657411,108150.0,108140.0,8.714e-05]
[1750099028708,7.03655681,108150.0,108140.0,8.714e-05]
[1750099028937,7.03655878,108150.0,108140.0,8.714e-05]
[1750099029157,7.03655875,108150.0,108140.0,8.714e-05]
[1750099029369,7.05785585,108150.0,108140.0,8.714e-05]
[1750099029594,7.0485387,108150.0,108140.0,8.714e-05]
[1750099030046,7.0658413,108150.0,108140.0,0.00108714]
[1750099030480,6.9985387,108150.0,108140.0,8.714e-05]
[1750099030700,7.0485387,108150.0,108140.0,8.714e-05]
[1750099030955,7.0545387,108150.0,108140.0,8.714e-05]
[1750099031167,7.0045387,108150.0,108140.0,8.714e-05]
[1750099031367,7.07184297,108150.0,108140.0,8.714e-05]
[1750099031701,7.01760212,108150.0,108140.0,8.714e-05]
[1750099032319,7.0545387,108150.0,108140.0,8.714e-05]
[1750099032531,7.02183369,108150.0,108140.0,6.5e-07]
[1750099032738,7.07183369,108150.0,108140.0,6.5e-07]
[1750099033150,7.07183377,108150.0,108140.0,6.5e-07]
[1750099033356,7.02183377,108150.0,108140.0,6.5e-07]
[1750099033556,7.07183377,108150.0,108140.0,6.5e-07]
[1750099034573,5.59345818,108130.0,108120.0,0.10595276]
[1750099034802,6.28231944,108130.0,108120.0,0.1059999]
[1750099035222,6.31010944,108130.0,108120.0,0.1059999]
[1750099035875,6.31310944,108130.0,108120.0,0.1059999]
[1750099036766,6.32657216,108130.0,108120.0,0.1059999]
[1750099037420,6.32657216,108130.0,108120.0,0.03088714]
[1750099047370,5.80704005,108130.0,108120.0,0.03088714]
[1750099047552,6.32657216,108130.0,108120.0,0.02588714]
[1750099051668,6.34871672,108130.0,108120.0,0.02588714]
[1750099051882,6.32657216,108130.0,108120.0,0.02588714]
[1750099052540,6.3487167,108130.0,108120.0,0.02588714]
[1750099053401,1.2987167,108130.0,108120.0,0.02588714]
[1750099053603,1.29872799,108130.0,108120.0,0.02588714]
[1750099056475,0.71087849,108130.0,108120.0,0.02588714]
[1750099056680,0.71087849,108130.0,108120.0,0.2227396]
[1750099056681,0.18114544,108130.0,108120.0,0.2227396]
[1750099056884,0.03474309,108130.0,108120.0,0.24123662]
[1750099057237,0.03474283,108130.0,108120.0,0.24607662]
[1750099057600,0.02774283,108130.0,108120.0,0.21833079]
[1750099057772,0.00924744,108130.0,108120.0,0.84080738]
[1750099057990,0.02049505,108130.0,108120.0,0.84080738]
[1750099058194,0.01124744,108130.0,108120.0,0.84080738]
[1750099058362,0.029743,108130.0,108120.0,0.32127527]
[1750099058562,0.031743,108130.0,108120.0,0.32127527]
[1750099058774,0.029743,108130.0,108120.0,0.32127527]
[1750099058978,0.02974308,108130.0,108120.0,0.2460767]
[1750099059177,0.01124744,108130.0,108120.0,0.2460767]
[1750099059378,0.02049505,108130.0,108120.0,0.2460767]
[1750099059627,0.02974283,108130.0,108120.0,0.2480767]
[1750099060054,0.02049505,108130.0,108120.0,0.2480767]
[1750099060485,0.01124744,108130.0,108120.0,0.2480767]
[1750099060686,0.00924744,108130.0,108120.0,0.2480767]
[1750099060889,0.0277407,108140.0,108130.0,0.2523697]
[1750099061525,0.03698788,108140.0,108130.0,0.2523697]
[1750099061934,0.21268665,108140.0,108130.0,0.23387449]
[1750099062580,0.21268665,108140.0,108130.0,0.24312236]
[1750099062814,0.21268665,108140.0,108130.0,0.25237014]
[1750099063023,0.21268665,108140.0,108130.0,0.26161783]
[1750099063201,0.21268665,108140.0,108130.0,0.24312236]
[1750099063434,0.20343972,108140.0,108130.0,0.24312236]
[1750099063658,0.00924693,108140.0,108130.0,0.2708651]
[1750099063872,0.01849377,108140.0,108130.0,0.26161775]
[1750099064085,0.2219328,108140.0,108130.0,0.23387449]
[1750099064303,0.22193349,108140.0,108130.0,0.23387449]
[1750099064508,0.22193349,108140.0,108130.0,0.24312236]
[1750099064810,0.21268665,108140.0,108130.0,0.24312236]
[1750099065637,0.20343972,108140.0,108130.0,0.23387449]
[1750099066173,0.20343972,108140.0,108130.0,0.22462654]
[1750099066465,0.19419271,108140.0,108130.0,0.23387466]
[1750099066683,0.18494544,108140.0,108130.0,0.23387466]
[1750099066904,0.18494544,108140.0,108130.0,0.22462654]
[1750099067130,0.70447755,108140.0,108130.0,0.034824]
[1750099067583,0.7518563,108140.0,108130.0,0.034824]
[1750099068288,0.70447755,108140.0,108130.0,0.034824]
[1750099068522,0.18987544,108140.0,108130.0,0.034824]
[1750099068754,0.70447755,108140.0,108130.0,0.22903458]
[1750099069320,0.72297158,108140.0,108130.0,0.22903458]
[1750099069562,0.72297158,108140.0,108130.0,0.21978654]
[1750099069825,0.72297158,108140.0,108130.0,0.2382827]
[1750099070040,0.72297158,108140.0,108130.0,0.22903466]
[1750099070252,0.72297158,108140.0,108130.0,0.24753065]
[1750099070253,0.20343947,108140.0,108130.0,0.24753065]
[1750099070456,0.72297158,108140.0,108130.0,0.25677843]
[1750099070682,0.71372465,108140.0,108130.0,0.24753065]
[1750099070889,0.71372465,108140.0,108130.0,0.21978654]
[1750099071710,0.71372465,108140.0,108130.0,0.034824]
[1750099071934,0.71865465,108140.0,108130.0,0.034824]
[1750099072352,0.71372465,108140.0,108130.0,0.034824]
[1750099072559,0.71372465,108140.0,108130.0,0.22903466]